bitfinex/quotes_ETHUSD_20250110
["timestamp","ask_amount","ask_price","bid_price","bid_amount"]
[1736473685839,0.1632,3234.8,3234.1,3.35796]
[1736473686134,0.1632,3234.8,3234.1,0.266]
[1736473686564,0.47952,3234.8,3234.2,0.0075]
[1736473686751,0.1632,3235.2,3234.3,0.0075]
[1736473686931,0.1632,3235.2,3234.8,3.09131]
[1736473687128,0.1632,3235.6,3235.0,3.09119]
[1736473687353,3.90762964,3236.1,3235.3,0.015]
[1736473687544,3.90762964,3236.1,3235.3,0.04590481]
[1736473687745,0.1632,3235.6,3234.8,3.09131]
[1736473688268,3.90762964,3235.6,3234.9,3.09121]
[1736473688471,3.90762964,3235.6,3234.2,0.266]
[1736473688472,6.90762964,3235.6,3234.2,0.266]
[1736473688655,0.1632,3235.4,3234.2,0.266]
[1736473688855,0.1632,3235.1,3233.8,3.09227]
[1736473689065,0.1632,3234.9,3233.8,3.09227]
[1736473689260,0.1632,3234.8,3233.6,0.0075]
[1736473689597,0.1632,3234.8,3233.8,3.09233]
[1736473689780,0.1632,3234.8,3233.8,3.35833]
[1736473689977,3.09215,3234.0,3233.4,0.1652366]
[1736473690267,0.609215,3233.9,3233.4,0.1652366]
[1736473690399,3.1632,3233.8,3233.4,0.1652366]
[1736473690738,0.1632,3233.8,3233.4,0.1652366]
[1736473695537,3.90762964,3233.8,3233.4,0.1652366]
[1736473697332,3.90762964,3233.8,3233.4,3.2579266]
[1736473697513,3.90762964,3233.8,3233.4,0.1652366]
[1736473698803,4.2983926,3233.8,3233.4,0.1652366]
[1736473699344,0.1632,3233.7,3233.4,0.1652366]
[1736473699481,3.74442964,3233.6,3233.4,0.1652366]
[1736473699936,0.1632,3233.5,3233.4,0.1652366]
[1736473700141,3.25582,3233.5,3233.4,0.1652366]
[1736473700430,6.95584496,3233.5,3233.4,0.1652366]
[1736473701002,11.10651134,3233.5,3233.4,0.1652366]
[1736473701202,8.01389134,3233.5,3233.4,0.1652366]
[1736473701545,7.6076546,3233.5,3233.4,0.1652366]
[1736473701753,10.7002746,3233.5,3233.4,0.1652366]
[1736473703652,7.6076546,3233.5,3233.4,0.1652366]
[1736473703816,4.6076546,3233.5,3233.4,0.1652366]
[1736473704015,3.90762964,3233.5,3233.4,0.1652366]
[1736473706180,10.00024964,3233.5,3233.4,0.1652366]
[1736473706883,6.90762964,3233.5,3233.4,0.1652366]
[1736473708774,10.00024964,3233.5,3233.4,0.1652366]
[1736473712183,10.00024964,3233.5,3233.4,0.02859051]
[1736473712485,10.00024964,3233.5,3231.8,3.10919]
[1736473712486,0.1632,3233.3,3231.7,0.8248]
[1736473712687,3.1632,3232.9,3231.7,0.8248]
[1736473712903,0.1632,3232.9,3231.8,0.05344053]
[1736473713215,0.1632,3233.2,3231.9,0.55]
[1736473713414,0.1632,3233.2,3232.6,3.09347]
[1736473713620,3.0,3233.3,3232.7,0.55]
[1736473714026,0.1632,3233.6,3233.1,3.09298]
[1736473714182,0.1632,3234.0,3233.2,0.55]
[1736473714521,3.1632,3234.0,3233.2,0.55]
[1736473714701,0.1632,3234.0,3233.4,3.09269]
[1736473714859,3.74442964,3234.1,3233.4,3.09265]
[1736473715261,3.74442964,3234.1,3233.5,3.09261]
[1736473715535,3.74442964,3234.1,3233.2,0.55]
[1736473715536,3.74442964,3234.1,3233.4,0.015]
[1736473715680,3.74442964,3234.1,3233.4,0.03092219]
[1736473715856,3.74442964,3234.1,3233.6,0.55]
[1736473718475,3.74442964,3234.1,3233.7,3.09242]
[1736473719223,0.1632,3234.7,3234.0,3.09205]
[1736473719516,0.1632,3234.7,3233.9,0.5725]
[1736473719719,0.1632,3234.7,3233.9,0.0225]
[1736473719898,0.1632,3235.0,3234.1,3.09196]
[1736473720106,0.1632,3235.0,3234.3,0.55]
[1736473720261,0.1632,3235.0,3233.8,0.7631]
[1736473720465,3.0,3234.8,3233.8,0.7631]
[1736473720935,3.0,3234.8,3233.9,0.55]
[1736473721805,3.58400216,3235.0,3233.9,0.55]
[1736473722019,0.43284318,3234.9,3234.0,3.09213]
[1736473722225,0.43284318,3234.9,3233.9,0.55]
[1736473722537,3.1632,3234.6,3233.6,3.09252]
[1736473723232,3.1632,3234.6,3233.7,0.55]
[1736473723443,0.625467,3234.5,3233.7,0.55]
[1736473723639,3.25479,3234.6,3233.6,0.55]
[1736473725231,6.99925964,3234.6,3233.4,3.09271]
[1736473725412,9.83611964,3234.5,3233.2,4.13368]
[1736473725619,3.09189,3234.3,3233.2,3.86068]
[1736473725933,0.325509,3234.2,3233.2,3.86068]
[1736473726757,0.1632,3234.4,3233.5,3.09261]
[1736473727080,0.1632,3234.4,3233.6,3.09245]
[1736473727766,0.1632,3234.4,3233.5,0.55]
[1736473728263,0.1632,3234.4,3233.3,0.55]
[1736473728427,0.1632,3234.4,3233.5,3.0926]
[1736473728618,0.69076296,3234.3,3233.5,3.0926]
[1736473729632,0.69076296,3234.3,3233.3,0.55]
[1736473729830,0.69076296,3234.3,3233.4,0.0309239]
[1736473730030,0.69076296,3234.3,3233.5,3.09261]
[1736473730468,0.69076296,3234.3,3233.3,0.55]
[1736473730768,0.69076296,3234.3,3233.6,3.09251]
[1736473731271,0.69076296,3234.3,3233.5,0.55]
[1736473731569,4.4351926,3234.3,3233.5,0.55]
[1736473732785,4.4351926,3234.3,3233.5,3.64256]
[1736473733089,4.4351926,3234.3,3233.3,0.55]
[1736473733248,4.4351926,3234.3,3233.5,3.09254]
[1736473733948,3.74442964,3234.3,3233.6,3.09249]
[1736473734551,3.90762964,3234.8,3233.9,0.55]
[1736473734739,3.90762964,3234.8,3234.2,0.55]
[1736473735936,3.90762964,3234.8,3233.9,0.565]
[1736473736225,3.90762964,3234.8,3234.3,3.09184]
[1736473736558,3.90762964,3234.8,3234.1,3.09203]
[1736473736799,3.90762964,3234.8,3234.2,0.55]
[1736473737011,0.43404728,3234.7,3234.2,0.55]
[1736473737309,3.90762964,3234.8,3234.2,0.55]
[1736473738516,3.90762964,3234.8,3234.3,0.55]
[1736473738814,3.74442964,3234.8,3234.3,0.58091752]
[1736473738976,3.74442964,3234.8,3234.5,0.55]
[1736473739795,0.1632,3235.2,3234.5,3.64158]
[1736473740312,3.1632,3235.5,3234.5,0.55]
[1736473740523,3.1632,3235.5,3234.3,3.09178]
[1736473740678,3.09081,3235.4,3234.3,3.09178]
[1736473740877,0.1632,3235.3,3234.4,0.55]
[1736473741420,0.1632,3235.3,3234.2,0.273]
[1736473741603,0.1632,3235.3,3234.1,3.36102]
[1736473741604,0.1632,3235.0,3234.1,3.36102]
[1736473741805,3.74442964,3234.9,3233.7,0.7802]
[1736473742123,3.74442964,3234.9,3232.9,3.09317]
[1736473742124,0.1632,3234.5,3233.3,0.7802]
[1736473742318,3.0,3234.4,3233.4,3.0927]
[1736473742869,0.1632,3234.0,3233.0,3.09309]
[1736473743074,0.325525,3233.9,3233.0,3.09309]
[1736473744531,0.325525,3233.9,3232.8,1.0444]
[1736473744532,0.325525,3233.9,3233.1,3.09299]
[1736473744709,0.1632,3234.0,3233.1,3.09299]
[1736473744876,0.1632,3234.0,3233.3,0.55]
[1736473745080,0.1632,3234.0,3233.3,3.09272]
[1736473745315,3.74442964,3234.2,3233.5,0.7754]
[1736473746111,3.74442964,3234.2,3233.6,3.09252]
[1736473746320,0.39076296,3234.1,3233.6,3.09252]
[1736473746617,0.39076296,3234.1,3233.5,0.7754]
[1736473746817,0.39076296,3234.1,3233.4,3.64269]
[1736473747230,0.39076296,3234.1,3233.1,0.7573]
[1736473747620,0.39076296,3234.1,3233.0,0.03092504]
[1736473747621,3.74442964,3233.9,3233.0,0.269]
[1736473747834,3.74442964,3233.9,3233.0,3.362]
[1736473748496,3.74442964,3233.9,3232.9,0.55]
[1736473748719,0.1632,3233.8,3232.9,0.55]
[1736473748925,0.1632,3233.8,3233.0,3.09306]
[1736473749125,0.39076296,3233.7,3233.0,3.09306]
[1736473752254,4.1351926,3233.7,3233.0,3.09306]
[1736473754760,4.1351926,3233.7,3232.8,3.64327]
[1736473755421,4.1351926,3233.7,3233.0,0.55]
[1736473756150,4.1351926,3233.7,3233.0,3.09309]
[1736473756350,0.42983926,3233.6,3233.0,3.09309]
[1736473756948,3.74442964,3233.7,3233.1,0.03092878]
[1736473757154,0.1632,3234.2,3233.5,3.09258]
[1736473757334,0.1632,3234.2,3233.7,3.0924]
[1736473757542,3.74442964,3234.3,3233.7,0.58092369]
[1736473757887,0.1632,3234.5,3234.2,3.0919]
[1736473758040,0.1632,3234.8,3234.3,0.55]
[1736473758221,3.74442964,3234.9,3234.3,0.55]
[1736473758424,0.1632,3235.1,3234.8,3.09129]
[1736473758972,0.1632,3235.1,3234.7,0.55]
[1736473759324,0.1632,3235.1,3234.7,3.09146]
[1736473759637,0.35840022,3235.3,3234.8,3.09136]
[1736473760022,0.35840022,3235.3,3234.6,3.64155]
[1736473760266,0.35840022,3235.3,3234.7,3.09146]
[1736473761024,3.90762964,3235.4,3234.8,0.03091227]
[1736473761277,3.90762964,3235.4,3235.2,3.09097]
[1736473761278,3.74442964,3235.4,3235.2,3.09097]
[1736473761625,0.1632,3235.7,3235.1,0.55]
[1736473762502,0.1632,3235.7,3235.3,0.55]
[1736473762709,0.1632,3235.7,3235.3,3.09089]
[1736473762908,3.90762964,3236.1,3235.4,0.55]
[1736473763206,3.90762964,3236.1,3235.4,3.35979]
[1736473763207,4.2983926,3236.1,3235.4,3.35979]
[1736473763408,4.2983926,3236.1,3235.4,0.269]
[1736473764807,0.1632,3235.8,3234.8,3.09136]
[1736473765786,0.1632,3235.8,3234.9,3.64126]
[1736473765987,0.47952,3235.8,3234.9,3.64126]
[1736473766394,0.1632,3235.8,3235.0,0.03091031]
[1736473766705,0.1632,3235.8,3235.2,3.09099]
[1736473766910,0.1632,3235.8,3235.1,0.55]
[1736473767269,0.1632,3235.8,3234.7,3.36044]
[1736473767612,0.1632,3235.6,3234.7,0.269]
[1736473767809,3.74442964,3235.3,3234.2,0.772]
[1736473768014,3.74442964,3235.3,3234.4,3.09172]
[1736473768169,3.74442964,3235.3,3234.1,0.269]
[1736473768170,0.1632,3235.2,3234.1,0.269]
[1736473768372,0.1632,3235.2,3234.4,0.55]
[1736473769410,3.74442964,3234.9,3233.5,3.09259]
[1736473769627,0.1632,3234.8,3233.8,3.0923]
[1736473769822,3.74442964,3234.7,3233.8,3.0923]
[1736473770120,0.1632,3234.6,3233.7,0.55]
[1736473770279,0.1632,3234.6,3233.6,3.09252]
[1736473770477,0.69991196,3234.5,3233.5,0.269]
[1736473770727,0.1632,3234.4,3233.5,0.269]
[1736473771275,0.1632,3234.4,3233.5,3.269]
[1736473771488,3.74442964,3234.2,3233.5,0.269]
[1736473773253,3.74442964,3234.2,3233.4,0.55]
[1736473773420,0.39076296,3234.1,3233.4,0.55]
[1736473776351,0.1632,3234.0,3233.0,3.0]
[1736473776633,3.25554,3233.8,3232.7,0.269]
[1736473776833,0.1632,3233.7,3232.7,0.269]
[1736473777018,0.1632,3233.7,3232.6,3.09346]
[1736473777226,0.1632,3233.7,3232.6,3.36246]
[1736473777549,0.1632,3233.7,3232.7,0.55]
[1736473777692,0.325554,3233.6,3232.7,0.55]
[1736473778247,3.74442964,3233.4,3232.1,3.0]
[1736473778395,0.1632,3233.3,3232.5,3.0]
[1736473779814,0.1632,3233.3,3232.4,3.09367]
[1736473780009,0.39076296,3233.2,3232.2,3.09385]
[1736473780219,0.39076296,3233.2,3232.3,0.269]
[1736473780544,0.39076296,3233.2,3232.4,0.55]
[1736473782201,4.1351926,3233.2,3232.4,0.55]
[1736473782363,0.42983926,3233.1,3232.4,0.55]
[1736473783402,0.42983926,3233.1,3232.3,0.269]
[1736473783891,0.42983926,3233.1,3232.4,3.64366]
[1736473785826,3.74442964,3233.2,3232.5,0.03093437]
[1736473785953,3.74442964,3233.2,3233.1,3.093]
[1736473786155,3.74442964,3233.2,3233.1,6.643]
[1736473787159,0.1632,3234.2,3233.4,0.0225]
[1736473787352,0.1632,3234.2,3233.7,3.09236]
[1736473787955,0.1632,3234.2,3233.8,3.09231]
[1736473788165,3.74442964,3234.3,3233.7,3.55]
[1736473788401,3.74442964,3234.3,3233.9,0.55]
[1736473788598,3.74442964,3234.3,3233.9,3.09221]
[1736473789430,3.74442964,3234.3,3233.9,3.87591]
[1736473790220,3.74442964,3234.3,3233.9,0.7837]
[1736473790419,0.1632,3234.9,3234.1,0.55]
[1736473790596,0.1632,3234.9,3234.0,0.55]
[1736473790791,0.1632,3234.9,3234.3,0.55]
[1736473791734,0.58400216,3234.9,3233.5,0.7837]
[1736473792043,0.1632,3234.7,3233.6,0.0225]
[1736473792340,0.1632,3234.7,3233.8,0.55]
[1736473792494,0.36753822,3234.6,3233.8,0.55]
[1736473793796,0.1632,3234.7,3233.8,0.55]
[1736473793992,0.1632,3234.7,3233.8,0.58092018]
[1736473794333,3.90762964,3234.7,3233.9,3.09214]
[1736473799706,3.90762964,3234.7,3233.8,0.269]
[1736473799969,0.1632,3234.6,3233.7,0.55]
[1736473800271,0.1632,3234.6,3233.3,3.0928]
[1736473800272,3.90762964,3234.4,3233.3,3.0928]
[1736473800476,3.90762964,3234.4,3233.4,3.3557]
[1736473800683,3.90762964,3234.4,3233.6,3.09252]
[1736473800832,3.90762964,3234.4,3233.6,0.03092333]
[1736473801048,3.90762964,3234.4,3233.6,0.58092333]
[1736473801247,3.90762964,3234.4,3233.9,0.55]
[1736473801758,3.90762964,3234.4,3233.9,3.09223]
[1736473802361,3.90762964,3234.4,3233.7,3.0]
[1736473802577,0.1632,3234.7,3234.2,3.09195]
[1736473802776,0.42080216,3235.2,3234.3,0.84391712]
[1736473802777,3.90762964,3235.0,3234.3,0.84391712]
[1736473802992,0.1632,3235.0,3234.5,0.0075]
[1736473803163,0.1632,3235.3,3234.8,3.09129]
[1736473803368,0.1632,3235.3,3234.9,3.09125]
[1736473803575,0.1632,3235.3,3234.7,0.03091083]
[1736473803777,3.90762964,3235.6,3234.7,0.03091083]
[1736473804092,3.90762964,3235.6,3235.5,3.64071]
[1736473804093,3.74442964,3235.6,3235.5,3.64071]
[1736473804410,0.1632,3236.0,3235.5,3.64071]
[1736473805907,0.1632,3236.0,3235.5,0.55]
[1736473807670,0.1632,3236.0,3235.5,3.64066]
[1736473808214,0.1632,3236.0,3235.5,0.55]
[1736473809773,0.1632,3236.0,3234.5,0.7827]
[1736473809774,3.74442964,3235.9,3234.5,0.7827]
[1736473810100,3.09068,3235.6,3234.6,0.263]
[1736473810300,0.1632,3235.7,3234.6,3.35455]
[1736473810900,3.0,3235.5,3234.5,0.263]
[1736473811105,3.0,3235.5,3234.1,3.35497]
[1736473811106,6.83550964,3235.2,3234.1,3.35497]
[1736473811332,0.68355096,3235.1,3234.1,0.263]
[1736473811523,3.1632,3234.9,3234.1,0.263]
[1736473811675,3.0,3234.7,3233.4,0.7827]
[1736473811870,3.74442964,3234.1,3233.2,3.3559]
[1736473812228,0.1632,3234.0,3233.1,0.263]
[1736473812390,0.39076296,3233.9,3233.1,3.35596]
[1736473813292,0.39076296,3233.9,3233.1,0.263]
[1736473815881,0.1632,3234.0,3233.2,0.55]
[1736473816080,3.74442964,3234.1,3233.4,0.55]
[1736473816294,3.74442964,3234.1,3233.5,0.55]
[1736473816964,3.74442964,3234.1,3233.5,3.64253]
[1736473817212,3.74442964,3234.1,3233.5,0.55]
[1736473817371,0.37444296,3234.0,3233.5,0.55]
[1736473817770,0.37444296,3234.0,3233.5,0.813]
[1736473818011,0.37444296,3234.0,3233.5,0.263]
[1736473818306,3.25555,3233.8,3232.8,0.7707]
[1736473818563,3.25555,3233.8,3232.8,1.0337]
[1736473818685,0.69999796,3233.7,3232.8,4.12695]
[1736473820409,0.69999796,3233.7,3232.9,3.64318]
[1736473820794,0.69999796,3233.7,3232.9,0.55]
[1736473820994,3.1632,3233.8,3233.1,3.09299]
[1736473821210,3.74442964,3233.9,3233.2,0.58092756]
[1736473821386,3.74442964,3233.9,3233.5,0.55]
[1736473822985,3.90762964,3234.5,3233.7,0.55]
[1736473823187,3.90762964,3234.5,3234.0,0.55]
[1736473824578,3.90762964,3234.5,3233.7,0.5725]
[1736473824776,3.90762964,3234.5,3233.7,3.66491]
[1736473824988,3.90762964,3234.5,3233.7,0.0225]
[1736473825173,3.90762964,3234.5,3234.0,0.55]
[1736473826417,4.2983926,3234.5,3233.8,0.263]
[1736473826861,4.2983926,3234.5,3233.0,3.09306]
[1736473826862,3.09205,3234.1,3233.0,3.09306]
[1736473827036,6.99977964,3234.0,3233.2,0.263]
[1736473827237,3.09236,3233.8,3233.2,0.263]
[1736473827748,0.69997796,3233.9,3233.2,0.263]
[1736473827931,3.90762964,3234.0,3233.3,0.55]
[1736473828268,3.74442964,3234.0,3233.4,0.81152688]
[1736473828558,0.1632,3234.3,3233.7,3.64242]
[1736473830875,0.1632,3234.3,3233.4,3.87325]
[1736473831262,0.1632,3234.3,3233.4,0.261]
[1736473831651,0.53076822,3234.3,3233.3,3.0928]
[1736473831833,0.53076822,3234.3,3233.3,3.3538]
[1736473832374,3.0,3234.1,3233.3,0.261]
[1736473833155,6.74442964,3234.1,3233.3,0.261]
[1736473835686,0.1632,3234.0,3233.3,0.261]
[1736473835885,3.0,3233.8,3233.3,0.261]
[1736473836774,3.0,3233.4,3232.6,0.261]
[1736473837086,3.0,3233.4,3232.6,3.09347]
[1736473839379,3.74442964,3233.5,3232.9,0.55]
[1736473839617,3.74442964,3233.5,3233.1,3.09293]
[1736473840765,3.74442964,3233.5,3233.2,3.09291]
[1736473841173,3.74442964,3233.5,3233.1,0.55]
[1736473843138,3.74442964,3233.5,3233.1,3.09296]
[1736473843729,3.74442964,3233.8,3233.1,0.55]
[1736473844018,3.74442964,3233.8,3233.5,0.55]
[1736473844371,3.74442964,3233.8,3233.5,3.64262]
[1736473844572,3.90762964,3234.2,3233.5,3.64262]
[1736473844816,3.90762964,3234.2,3233.7,3.09242]
[1736473845026,3.74442964,3234.2,3233.8,0.03092275]
[1736473845320,3.74442964,3234.2,3234.1,3.64205]
[1736473845522,3.74442964,3234.2,3234.1,4.40455]
[1736473846332,0.1632,3234.8,3234.2,3.64193]
[1736473846484,0.1632,3234.8,3234.2,0.55]
[1736473847041,0.1632,3234.8,3233.8,0.7625]
[1736473847042,0.1632,3234.8,3233.8,3.85478]
[1736473847333,0.58400216,3234.8,3233.9,0.55]
[1736473848801,0.58400216,3234.8,3233.9,3.90315]
[1736473849129,1.62596534,3234.8,3233.9,3.90315]
[1736473849453,1.62596534,3234.8,3233.9,0.811]
[1736473849782,1.20516318,3234.8,3233.9,0.811]
[1736473850297,1.20516318,3234.8,3233.9,3.90317]
[1736473850631,0.1632,3234.8,3234.0,0.03091987]
[1736473850845,0.68355096,3235.1,3234.0,0.03091987]
[1736473850846,0.1632,3235.1,3234.7,0.55]
[1736473851004,3.90762964,3235.4,3234.7,3.09139]
[1736473851215,3.0,3235.3,3234.5,3.09164]
[1736473851520,0.69076296,3235.2,3234.6,0.55]
[1736473851700,3.0,3235.3,3234.6,0.55]
[1736473852537,3.0,3235.3,3234.7,0.55]
[1736473853099,3.0,3235.3,3234.7,3.09147]
[1736473853433,3.74442964,3235.4,3235.0,3.09118]
[1736473853603,3.74442964,3235.4,3234.9,0.55]
[1736473854020,3.74442964,3235.2,3234.2,0.261]
[1736473854246,3.25439,3235.0,3234.2,0.261]
[1736473854539,3.74442964,3234.8,3234.2,0.261]
[1736473859010,3.74442964,3234.8,3234.5,3.09162]
[1736473860696,3.74442964,3234.8,3234.3,3.64183]
[1736473862952,3.74442964,3234.8,3234.0,3.09206]
[1736473863095,3.74442964,3234.8,3234.3,0.259]
[1736473863295,3.0,3234.7,3234.3,0.259]
[1736473864097,3.0,3234.7,3234.1,0.55]
[1736473865442,3.0,3234.7,3234.3,3.85725]
[1736473866344,3.90762964,3235.3,3234.6,3.09154]
[1736473867550,3.74442964,3235.6,3234.8,0.0225]
[1736473867753,3.0,3235.5,3235.0,3.64116]
[1736473867907,3.74442964,3235.6,3235.0,0.55]
[1736473868353,3.0,3235.5,3235.0,0.55]
[1736473868849,3.0,3235.5,3235.0,3.64118]
[1736473871027,3.0,3235.5,3234.9,1.035]
[1736473871233,3.0,3235.5,3234.9,0.259]
[1736473871610,3.0,3235.5,3234.5,0.015]
[1736473871811,0.1632,3235.2,3234.6,0.259]
[1736473872547,0.1632,3235.2,3234.6,0.809]
[1736473873345,6.74442964,3235.3,3234.7,0.58091315]
[1736473873672,3.74442964,3235.3,3234.9,0.55]
[1736473874034,3.74442964,3235.3,3235.0,0.55]
[1736473875366,3.74442964,3235.3,3235.1,3.09108]
[1736473875567,0.1632,3235.8,3235.0,0.55]
[1736473875865,3.74442964,3235.9,3235.4,3.09073]
[1736473876437,3.74442964,3235.9,3235.5,0.03090521]
[1736473876641,3.74442964,3235.9,3235.4,0.03090399]
[1736473877167,3.74442964,3235.9,3235.5,0.259]
[1736473877330,3.74442964,3235.9,3235.5,0.809]
[1736473878333,3.74442964,3235.9,3235.5,0.259]
[1736473878527,0.1632,3235.8,3235.5,0.259]
[1736473879172,3.74442964,3235.9,3235.5,0.28990569]
[1736473879339,3.74442964,3235.9,3235.7,3.0905]
[1736473879528,3.74442964,3235.9,3235.6,0.55]
[1736473880369,3.74442964,3235.9,3235.5,0.28990333]
[1736473880370,3.74442964,3236.3,3236.0,3.0902]
[1736473881172,3.74442964,3236.3,3236.1,3.09013]
[1736473881951,3.74442964,3236.3,3235.9,3.11282]
[1736473882163,3.74442964,3236.3,3235.5,0.259]
[1736473882164,3.74442964,3236.3,3235.7,3.09051]
[1736473882677,3.74442964,3236.3,3235.8,3.12130176]
[1736473882857,3.74442964,3236.3,3235.8,3.0904]
[1736473883256,3.74442964,3236.3,3235.6,0.0225]
[1736473883570,3.74442964,3236.3,3235.5,0.7614]
[1736473883870,3.1632,3236.2,3235.2,0.7614]
[1736473884029,3.74442964,3236.1,3235.2,0.7614]
[1736473884565,3.74442964,3236.1,3235.3,0.03090686]
[1736473884765,3.74442964,3236.1,3235.3,0.015]
[1736473885176,3.74442964,3236.1,3235.4,3.09075]
[1736473889586,3.74442964,3236.1,3235.7,3.09047]
[1736473889730,3.74442964,3236.1,3235.5,3.09068]
[1736473891004,3.74442964,3236.1,3235.7,3.09052]
[1736473892801,3.74442964,3236.1,3235.4,0.015]
[1736473893101,0.1632,3236.0,3235.5,0.256]
[1736473894052,3.1632,3236.0,3235.5,0.256]
[1736473894258,0.69076296,3235.9,3235.5,0.256]
[1736473895206,3.0,3235.8,3235.1,0.256]
[1736473895503,6.90762964,3235.8,3235.1,0.256]
[1736473899110,6.90762964,3235.8,3234.8,3.09135]
[1736473899403,0.1632,3235.4,3234.5,3.34765]
[1736473900051,3.1632,3235.4,3234.5,3.34765]
[1736473900255,6.25406,3235.4,3234.5,0.256]
[1736473900456,3.0,3235.2,3234.5,0.256]
[1736473900652,3.1632,3235.4,3234.5,0.256]
[1736473900903,4.39609512,3235.4,3234.5,0.256]
[1736473901056,3.1632,3235.4,3234.6,0.03841399]
[1736473901260,3.1632,3235.4,3234.6,0.0225]
[1736473901515,3.74442964,3235.5,3234.6,0.0534098]
[1736473901718,3.74442964,3235.5,3234.9,0.0075]
[1736473901860,0.1632,3236.1,3235.4,0.0075]
[1736473902196,0.1632,3236.1,3235.6,3.09057]
[1736473902891,0.1632,3236.1,3235.7,3.09049]
[1736473903117,0.1632,3236.5,3235.8,0.03090167]
[1736473903280,0.1632,3236.8,3236.3,3.08994]
[1736473903467,3.90762964,3237.1,3236.4,0.03089552]
[1736473903667,3.90762964,3237.1,3236.3,3.08985]
[1736473903880,3.90762964,3237.1,3236.2,0.8284]
[1736473904108,3.90762964,3237.1,3236.4,3.08984]
[1736473904613,3.90762964,3237.1,3236.5,0.28689523]
[1736473904762,3.74442964,3237.1,3236.5,0.28689523]
[1736473904960,0.1632,3237.4,3236.9,3.08935]
[1736473905213,0.1632,3237.4,3236.6,0.0225]
[1736473905214,0.1632,3237.4,3236.8,3.08939]
[1736473905714,0.1632,3237.4,3236.6,3.10464]
[1736473906468,0.1632,3237.4,3236.7,0.03089152]
[1736473906766,0.42080216,3237.8,3236.9,3.08936]
[1736473906964,0.1632,3237.7,3236.8,0.0075]
[1736473907197,0.1632,3237.7,3237.2,3.08907]
[1736473907815,3.0,3238.0,3237.3,0.03088683]
[1736473907970,0.67444296,3237.9,3237.3,0.03088683]
[1736473908166,0.67444296,3237.9,3237.2,3.08907]
[1736473908600,0.67444296,3237.9,3237.1,0.0075]
[1736473909026,0.67444296,3237.9,3237.1,3.09662]
[1736473909169,3.1632,3238.0,3237.2,3.08906]
[1736473910068,3.1632,3238.0,3237.3,0.03088684]
[1736473911112,6.90762964,3238.0,3237.2,3.08906]
[1736473912289,6.90762964,3238.0,3237.3,0.03088684]
[1736473913154,6.90762964,3238.0,3237.1,0.0075]
[1736473913362,7.5983926,3238.0,3237.2,3.08908]
[1736473913649,7.5983926,3238.0,3237.3,3.11983683]
[1736473913849,3.90762964,3238.0,3237.4,0.256]
[1736473914046,3.90762964,3238.0,3237.5,0.03088435]
[1736473914600,3.90762964,3238.0,3237.5,3.08879]
[1736473917124,3.90762964,3238.0,3237.6,0.0308837]
[1736473917655,3.90762964,3238.0,3237.5,3.08879]
[1736473918706,3.90762964,3238.0,3237.4,0.256]
[1736473919926,0.1632,3238.0,3237.5,3.11129]
[1736473920345,0.1632,3238.0,3237.5,3.09629]
[1736473920658,0.1632,3238.0,3237.4,0.256]
[1736473922230,0.1632,3238.0,3237.5,0.0308844]
[1736473922456,0.1632,3238.0,3237.5,3.1196644]
[1736473923961,3.90762964,3238.3,3237.8,3.08849]
[1736473927505,3.90762964,3238.3,3237.7,0.7585]
[1736473928396,3.90762964,3238.3,3237.7,0.7893814]
[1736473928598,3.90762964,3238.3,3237.4,4.13489]
[1736473928751,3.90762964,3238.3,3237.5,0.03088426]
[1736473929152,3.90762964,3238.3,3237.5,3.37066426]
[1736473930055,3.90762964,3238.3,3237.6,3.08865]
[1736473930255,3.90762964,3238.3,3237.7,0.03088412]
[1736473930714,3.90762964,3238.3,3237.6,0.0225]
[1736473931051,3.90762964,3238.3,3237.5,0.251]
[1736473931258,4.2983926,3238.3,3237.1,0.79]
[1736473931673,0.1632,3238.1,3237.1,3.34015]
[1736473931971,0.1632,3237.9,3236.9,3.08937]
[1736473932122,0.1632,3237.8,3237.0,0.251]
[1736473933428,0.1632,3237.8,3236.9,3.34037]
[1736473933921,0.1632,3237.7,3236.9,3.34037]
[1736473935153,0.1632,3237.7,3235.6,0.49999848]
[1736473935154,0.1632,3237.6,3236.8,0.251]
[1736473935349,5.41435839,3237.7,3235.9,0.796]
[1736473935350,3.74442964,3237.2,3235.9,0.796]
[1736473935529,0.1632,3237.0,3235.9,0.796]
[1736473935762,0.1632,3237.0,3236.0,0.251]
[1736473936131,3.74442964,3236.6,3235.9,0.251]
[1736473936344,3.74442964,3236.6,3236.0,3.0902]
[1736473936543,3.74442964,3236.6,3236.0,3.1210988]
[1736473937083,3.74442964,3236.6,3236.0,3.0902]
[1736473937300,3.74442964,3236.6,3236.1,3.09011]
[1736473937430,3.74442964,3236.6,3236.1,0.251]
[1736473938834,3.74442964,3236.6,3236.1,3.34111]
[1736473939589,3.74442964,3236.6,3236.1,0.251]
[1736473942183,3.74442964,3236.6,3235.8,0.251]
[1736473942481,3.1632,3236.5,3235.5,3.09068]
[1736473942635,3.90762964,3236.4,3235.5,3.09068]
[1736473942872,3.90762964,3236.4,3235.6,0.251]
[1736473943050,4.83993444,3236.4,3235.6,0.251]
[1736473943754,0.1632,3236.3,3235.2,0.015]
[1736473943954,0.1632,3236.3,3235.4,3.09078]
[1736473944186,0.1632,3236.3,3235.5,0.251]
[1736473945007,0.1632,3236.3,3235.4,3.09078]
[1736473945008,3.1632,3236.3,3235.4,3.09078]
[1736473945304,3.1632,3236.3,3235.5,0.251]
[1736473945658,3.1632,3236.3,3235.6,0.03090445]
[1736473945967,3.1632,3236.3,3235.5,0.251]
[1736473946372,3.1632,3236.3,3235.7,3.09051]